bitfinex/quotes_BTCUSD_20250825
["timestamp","ask_amount","ask_price","bid_price","bid_amount"]
[1756157585009,4.68067208,109790.0,109780.0,0.16912]
[1756157585803,4.67634939,109790.0,109780.0,0.16912]
[1756157586035,4.68268077,109790.0,109780.0,0.16912]
[1756157586262,4.68368069,109790.0,109780.0,0.16912]
[1756157586499,4.68368405,109790.0,109780.0,0.16912]
[1756157587465,4.68268405,109790.0,109780.0,0.16912]
[1756157587697,4.76388863,109790.0,109780.0,0.16912]
[1756157587920,4.76588863,109790.0,109780.0,0.16912]
[1756157588555,4.77499692,109790.0,109760.0,0.25229554]
[1756157588766,0.18219914,109770.0,109760.0,0.25229574]
[1756157589007,0.18751914,109770.0,109760.0,0.07008]
[1756157589494,0.18751914,109770.0,109760.0,0.23852]
[1756157589966,0.18760656,109770.0,109760.0,0.23852]
[1756157590180,4.64185156,109770.0,109760.0,0.07008]
[1756157590419,0.18223234,109750.0,109740.0,0.27216804]
[1756157590630,0.18436234,109750.0,109740.0,0.44052804]
[1756157591057,0.18436234,109750.0,109740.0,0.27216804]
[1756157591299,0.19862528,109750.0,109740.0,0.44052804]
[1756157591589,0.20181528,109750.0,109740.0,0.44052804]
[1756157592560,0.18755234,109750.0,109740.0,0.44052804]
[1756157592853,0.18755234,109750.0,109740.0,0.44652804]
[1756157593115,0.18755234,109750.0,109740.0,0.27216804]
[1756157593377,0.18755234,109750.0,109740.0,0.44348804]
[1756157593608,0.00213,109750.0,109740.0,0.44448804]
[1756157593848,0.18755234,109750.0,109740.0,0.02144902]
[1756157594044,4.6787755,109750.0,109740.0,0.17216]
[1756157594260,4.66131975,109750.0,109740.0,0.17216]
[1756157594512,4.66766996,109750.0,109740.0,0.17216]
[1756157594716,4.66131975,109750.0,109740.0,0.17216]
[1756157595351,4.7086451,109750.0,109740.0,0.17116]
[1756157595540,4.7086451,109750.0,109740.0,0.17132]
[1756157595838,4.7229092,109750.0,109740.0,0.17132]
[1756157596091,0.18224895,109740.0,109730.0,0.07008]
[1756157596314,4.63649395,109740.0,109730.0,0.07008]
[1756157596562,4.66939519,109740.0,109700.0,0.2687]
[1756157596806,0.18229878,109710.0,109690.0,0.36545971]
[1756157597042,0.1823154,109700.0,109690.0,0.14261275]
[1756157597318,0.1823154,109700.0,109690.0,0.31356275]
[1756157597523,0.22441582,109700.0,109690.0,0.07008]
[1756157597732,4.65614907,109700.0,109690.0,0.239]
[1756157598351,4.65623641,109700.0,109690.0,0.239]
[1756157598557,4.69287627,109700.0,109690.0,0.239]
[1756157598767,4.77974592,109700.0,109690.0,0.239]
[1756157599501,4.77974592,109700.0,109690.0,0.242]
[1756157600239,4.77974592,109700.0,109690.0,0.243]
[1756157601602,4.76547725,109700.0,109690.0,0.243]
[1756157603830,4.6786076,109700.0,109690.0,0.243]
[1756157604290,4.6786076,109700.0,109690.0,0.004]
[1756157604797,4.8470876,109700.0,109690.0,0.004]
[1756157605075,4.8613596,109700.0,109690.0,0.004]
[1756157605548,4.8613596,109700.0,109690.0,0.003]
[1756157605764,4.94822925,109700.0,109690.0,0.003]
[1756157606000,0.18233202,109690.0,109680.0,0.16592]
[1756157606236,4.63870702,109690.0,109680.0,0.0002]
[1756157606470,4.64182702,109690.0,109680.0,0.0002]
[1756157607874,4.64182702,109690.0,109680.0,0.0032]
[1756157608104,4.72869667,109690.0,109680.0,0.0032]
[1756157609046,4.72869667,109690.0,109680.0,0.0002]
[1756157609297,4.89665667,109690.0,109680.0,0.0002]
[1756157609762,4.89865667,109690.0,109680.0,0.0002]
[1756157610007,4.90065667,109690.0,109680.0,0.0002]
[1756157610263,4.73269667,109690.0,109680.0,0.0002]
[1756157610496,4.90065667,109690.0,109680.0,0.0002]
[1756157610978,4.64582702,109690.0,109680.0,0.0002]
[1756157611712,4.64057702,109690.0,109680.0,0.00226]
[1756157611953,4.458245,109690.0,109680.0,0.2571414]
[1756157612446,4.64057702,109690.0,109680.0,0.2571414]
[1756157612665,4.456245,109690.0,109680.0,0.2571414]
[1756157613142,0.002,109690.0,109680.0,0.27856042]
[1756157613383,0.5367272,109700.0,109690.0,0.18233202]
[1756157613600,0.5367272,109700.0,109690.0,0.36730104]
[1756157613820,0.5367272,109700.0,109690.0,0.37233104]
[1756157614282,0.0367272,109700.0,109690.0,0.37233104]
[1756157615201,0.0367272,109700.0,109690.0,0.37333104]
[1756157615672,0.0367272,109700.0,109690.0,0.37233104]
[1756157616398,0.05099624,109700.0,109690.0,0.37233104]
[1756157616615,0.05099624,109700.0,109690.0,0.37433104]
[1756157616812,0.05099624,109700.0,109690.0,0.37633104]
[1756157617254,0.05099624,109700.0,109690.0,0.37433104]
[1756157617453,0.05099624,109700.0,109690.0,0.37733104]
[1756157624193,0.01435638,109700.0,109690.0,0.37733104]
[1756157624390,8.734e-05,109700.0,109690.0,0.56421579]
[1756157624606,0.01426777,109730.0,109720.0,0.19973119]
[1756157624738,0.01435522,109730.0,109720.0,0.37152119]
[1756157624926,8.745e-05,109730.0,109720.0,0.37152119]
[1756157625541,8.745e-05,109730.0,109720.0,1.06405968]
[1756157625761,8.745e-05,109730.0,109720.0,1.47247718]
[1756157626205,8.745e-05,109730.0,109720.0,0.70740594]
[1756157626408,8.745e-05,109730.0,109720.0,1.40243026]
[1756157627038,8.745e-05,109730.0,109720.0,1.36210862]
[1756157627667,8.745e-05,109730.0,109720.0,1.36410862]
[1756157628529,8.745e-05,109730.0,109720.0,1.76410862]
[1756157628674,8.745e-05,109730.0,109720.0,1.10740594]
[1756157628890,8.745e-05,109730.0,109720.0,1.61210862]
[1756157629092,8.745e-05,109730.0,109720.0,1.76410862]
[1756157629300,8.745e-05,109730.0,109720.0,1.76810862]
[1756157629486,8.745e-05,109730.0,109720.0,1.80157702]
[1756157629686,0.00312,109770.0,109760.0,0.19966476]
[1756157629908,0.50525,109770.0,109760.0,0.36534476]
[1756157630112,4.959495,109770.0,109760.0,0.36534476]
[1756157630313,0.01951153,109770.0,109760.0,0.36534476]
[1756157630540,0.51951153,109770.0,109760.0,0.36534476]
[1756157630780,5.0100283,109770.0,109760.0,0.36534476]
[1756157630905,0.0557833,109770.0,109760.0,0.36534476]
[1756157631115,0.5557833,109770.0,109760.0,0.36534476]
[1756157631330,5.0100283,109770.0,109760.0,0.36534476]
[1756157631538,0.05499272,109770.0,109760.0,0.36534476]
[1756157631739,0.55499272,109770.0,109760.0,0.36534476]
[1756157631945,5.0069083,109770.0,109760.0,0.36734476]
[1756157632149,0.0526633,109770.0,109760.0,0.36734476]
[1756157632553,0.5526633,109770.0,109760.0,0.36734476]
[1756157632747,5.0069083,109770.0,109760.0,0.36940476]
[1756157632951,0.03840177,109770.0,109760.0,0.36734476]
[1756157633319,0.03840177,109770.0,109760.0,0.36940476]
[1756157633628,0.53840177,109770.0,109760.0,0.36940476]
[1756157633824,4.99264677,109770.0,109760.0,0.36940476]
[1756157633974,0.03840177,109770.0,109760.0,0.36940476]
[1756157634172,0.03627177,109770.0,109760.0,0.36940476]
[1756157634379,0.50312,109780.0,109770.0,0.19964816]
[1756157634597,0.50525,109780.0,109770.0,0.19964816]
[1756157636083,0.53785541,109780.0,109770.0,0.19068379]
[1756157637147,0.53885541,109780.0,109770.0,0.19068379]
[1756157637565,0.53981541,109780.0,109770.0,0.19068379]
[1756157637772,0.53785541,109780.0,109770.0,0.35684379]
[1756157637979,0.53981541,109780.0,109770.0,0.35784379]
[1756157638185,0.53981541,109780.0,109770.0,0.35984379]
[1756157638391,0.53785541,109780.0,109770.0,0.35984379]
[1756157638590,0.53785541,109780.0,109770.0,0.35784379]
[1756157638813,0.53785541,109780.0,109770.0,0.36084379]
[1756157639236,0.03785541,109780.0,109770.0,0.40491234]
[1756157639468,0.01426134,109790.0,109780.0,0.18218254]
[1756157639658,0.01426134,109790.0,109780.0,0.36967856]
[1756157639976,0.01426134,109790.0,109780.0,0.36959856]
[1756157640307,0.01426134,109790.0,109780.0,0.92959424]
[1756157640585,0.01426134,109790.0,109780.0,1.09535424]
[1756157640738,0.01426134,109790.0,109780.0,1.11979677]
[1756157641210,0.01426134,109790.0,109780.0,1.15244014]
[1756157641534,0.01426134,109790.0,109780.0,0.98672014]
[1756157641750,0.5,109810.0,109800.0,0.18214936]
[1756157641959,0.00014411,109810.0,109800.0,0.18417936]
[1756157642180,0.01439975,109810.0,109800.0,0.37037838]
[1756157642381,0.00014411,109810.0,109800.0,0.37037838]
[1756157642594,0.00014411,109810.0,109800.0,1.02508106]
[1756157642984,0.00014411,109810.0,109800.0,1.04956359]
[1756157643220,0.00014411,109810.0,109800.0,1.05356359]
[1756157644285,0.00014411,109810.0,109800.0,1.20756359]
[1756157644504,0.00014411,109810.0,109800.0,0.48411091]
[1756157644711,0.00529411,109810.0,109800.0,0.52327838]
[1756157644928,0.00529411,109810.0,109800.0,0.52530838]
[1756157644929,0.00014411,109810.0,109800.0,0.52530838]
[1756157645139,0.00014411,109810.0,109800.0,0.20962838]
[1756157645349,0.00529411,109810.0,109800.0,0.37339838]
[1756157645562,0.00529411,109810.0,109800.0,0.20759838]
[1756157645772,0.01954852,109810.0,109800.0,0.37339838]
[1756157645997,0.01954852,109810.0,109800.0,0.20759838]
[1756157646225,0.01954852,109810.0,109800.0,0.19014936]
[1756157646226,0.75363614,109810.0,109800.0,0.19014936]
[1756157646440,4.52574837,109810.0,109800.0,0.35590936]
[1756157646655,0.07150337,109810.0,109800.0,0.35590936]
[1756157646860,0.01954852,109810.0,109800.0,0.37335838]
[1756157647050,0.51439852,109810.0,109800.0,0.35590936]
[1756157647263,4.97379352,109810.0,109800.0,0.36935838]
[1756157647482,0.01954852,109810.0,109800.0,0.36935838]
[1756157647703,0.51954852,109810.0,109800.0,0.20659838]
[1756157647912,4.97379352,109810.0,109800.0,0.37219838]
[1756157648123,0.01954852,109810.0,109800.0,0.37219838]
[1756157648543,0.01954852,109810.0,109800.0,0.40993275]
[1756157648793,0.01954852,109810.0,109800.0,0.40989275]
[1756157648974,0.01954852,109810.0,109800.0,0.41489275]
[1756157649237,0.01954852,109810.0,109800.0,0.41497275]
[1756157650116,0.01439852,109810.0,109800.0,0.41700275]
[1756157650297,0.01635852,109810.0,109800.0,0.41700275]
[1756157650733,0.01635852,109810.0,109800.0,0.49874356]
[1756157651380,0.01635852,109810.0,109800.0,0.48224376]
[1756157652397,0.01439852,109810.0,109800.0,0.48224376]
[1756157652655,0.01635852,109810.0,109800.0,0.48224376]
[1756157653690,0.00210411,109810.0,109800.0,0.48224376]
[1756157654157,0.00014411,109810.0,109800.0,0.48224376]
[1756157654372,0.00014411,109810.0,109800.0,0.48535376]
[1756157654586,0.00014411,109810.0,109800.0,0.42011275]
[1756157654813,0.00014411,109810.0,109800.0,0.48531971]
[1756157655023,0.00014411,109810.0,109800.0,0.50185356]
[1756157655461,0.00014411,109810.0,109800.0,0.56703092]
[1756157655666,0.00014411,109810.0,109800.0,0.47729011]
[1756157655849,0.00014411,109810.0,109800.0,0.47818011]
[1756157656096,0.00014411,109810.0,109800.0,0.48729011]
[1756157656308,0.00014411,109810.0,109800.0,0.48129011]
[1756157656535,0.00014411,109810.0,109800.0,0.47729011]
[1756157656751,0.00014411,109810.0,109800.0,0.48529011]
[1756157656947,0.00014411,109810.0,109800.0,0.49029011]
[1756157658187,0.01439776,109810.0,109800.0,0.49029011]
[1756157662123,0.01439776,109810.0,109800.0,0.49017011]
[1756157662589,0.00014411,109810.0,109800.0,0.49017011]
[1756157663674,0.00014411,109810.0,109800.0,0.32465011]
[1756157663907,0.00014411,109810.0,109800.0,0.49017011]
[1756157664757,0.00014411,109810.0,109800.0,0.75887011]
[1756157664912,0.00014411,109810.0,109800.0,1.60045754]
[1756157665114,0.00014411,109810.0,109800.0,1.68528018]
[1756157665328,0.04504885,109850.0,109830.0,0.19954862]
[1756157665530,0.0021,109840.0,109830.0,0.26962862]
[1756157665743,0.0021,109840.0,109830.0,0.43514862]
[1756157666091,0.0021,109840.0,109830.0,0.46771141]
[1756157666523,0.0021,109840.0,109830.0,0.43514862]
[1756157666733,0.0021,109840.0,109830.0,0.26962862]
[1756157666932,0.0021,109840.0,109830.0,0.43510862]
[1756157667544,0.00507,109840.0,109830.0,0.43610862]
[1756157668187,0.00607,109840.0,109830.0,0.43610862]
[1756157668455,0.0031,109840.0,109830.0,0.43807862]
[1756157668684,0.0031,109840.0,109830.0,0.2531796]
[1756157668899,0.00607,109840.0,109830.0,0.4186596]
[1756157669127,0.00607,109840.0,109830.0,0.4176596]
[1756157669373,0.00507,109840.0,109830.0,0.4176596]
[1756157669592,0.00507,109840.0,109830.0,0.4186596]
[1756157669816,0.00607,109840.0,109830.0,0.4186596]
[1756157670041,0.00607,109840.0,109830.0,0.4176596]
[1756157670254,0.00607,109840.0,109830.0,0.4206596]
[1756157671483,0.00607,109840.0,109830.0,0.4226296]
[1756157671702,0.0031,109840.0,109830.0,0.4226296]
[1756157671913,0.0031,109840.0,109830.0,0.44007862]
[1756157672529,0.001,109840.0,109830.0,0.51261137]
[1756157672741,0.001,109840.0,109830.0,0.51570137]
[1756157672952,0.001,109840.0,109830.0,0.56454556]
[1756157673172,0.001,109840.0,109830.0,0.60534974]
[1756157673351,0.001,109840.0,109830.0,0.51570137]
[1756157674028,0.001,109840.0,109830.0,0.56454556]
[1756157674277,0.001,109840.0,109830.0,0.51570137]
[1756157674490,0.001,109840.0,109830.0,0.83324556]
[1756157675539,0.001,109840.0,109830.0,0.84952651]
[1756157676152,0.01525044,109840.0,109830.0,0.84952651]
[1756157677566,0.03127529,109850.0,109840.0,0.34953204]
[1756157677802,0.03127529,109850.0,109840.0,1.17469472]
[1756157677996,0.03127529,109850.0,109840.0,0.60173285]
[1756157678204,0.03127529,109850.0,109840.0,0.43633285]
[1756157678415,0.03127529,109850.0,109840.0,1.25643553]
[1756157678828,0.03718417,109880.0,109870.0,0.19948233]
[1756157679040,0.00022399,109880.0,109870.0,0.48891164]
[1756157679245,0.00022399,109880.0,109870.0,0.27458233]
[1756157679445,0.00022399,109880.0,109870.0,0.48892891]
[1756157679653,0.00022399,109880.0,109870.0,0.43998233]
[1756157679857,0.00529399,109880.0,109870.0,0.43492233]
[1756157680067,0.00529399,109880.0,109870.0,0.48486912]
[1756157680271,0.03955045,109880.0,109870.0,0.43789233]
[1756157680479,0.03745045,109880.0,109870.0,0.43789233]
[1756157680704,0.00022399,109880.0,109870.0,0.44098233]
[1756157680916,0.00022399,109880.0,109870.0,0.57875417]
[1756157681334,0.00022399,109880.0,109870.0,0.51351508]
[1756157681802,0.00022399,109880.0,109870.0,0.51251508]
[1756157682042,0.00022399,109880.0,109870.0,0.34811508]
[1756157682289,0.00122399,109880.0,109870.0,0.57868325]
[1756157682527,0.18603367,109920.0,109890.0,0.18200018]
[1756157682742,4.94387505,109910.0,109900.0,0.34734362]
[1756157682950,0.18406767,109910.0,109900.0,0.34734362]
[1756157683576,0.0021,109910.0,109900.0,0.34734362]
[1756157683784,0.5021,109910.0,109900.0,0.34734362]
[1756157683994,4.758452,109910.0,109900.0,0.34734362]
[1756157684223,0.0021,109910.0,109900.0,0.36676264]
[1756157684481,0.53622633,109910.0,109900.0,0.43989264]
[1756157684688,4.756352,109910.0,109900.0,0.43989264]
[1756157685052,4.256352,109910.0,109900.0,0.43989264]
[1756157685256,4.2725944,109910.0,109900.0,0.43989264]
[1756157685461,0.0182424,109910.0,109900.0,0.43985264]
[1756157685662,0.0162424,109910.0,109900.0,0.43985264]
[1756157685871,0.0142424,109910.0,109900.0,0.25786902]
[1756157688190,0.05099189,109910.0,109900.0,0.25786902]
[1756157689034,0.0137424,109910.0,109900.0,0.25786902]
[1756157689244,0.0137424,109910.0,109900.0,0.34475377]
[1756157689473,0.00014388,109920.0,109910.0,0.01744902]
[1756157689683,0.00014388,109920.0,109910.0,0.09504177]
[1756157690108,0.00014388,109920.0,109910.0,0.26032177]
[1756157690765,0.00014388,109920.0,109910.0,0.09504177]
[1756157690984,0.00014388,109920.0,109910.0,0.26032177]
[1756157692402,0.00014388,109920.0,109910.0,0.26028177]
[1756157692641,0.00014388,109920.0,109910.0,0.26228177]
[1756157692903,0.00014388,109920.0,109910.0,0.09804177]
[1756157693142,0.00014388,109920.0,109910.0,0.28008995]
[1756157693851,0.00014388,109920.0,109910.0,0.43008995]
[1756157695303,0.00014388,109920.0,109910.0,0.3669747]
[1756157695526,0.00014388,109920.0,109910.0,0.5169747]
[1756157695923,0.00014388,109920.0,109910.0,1.17167738]
[1756157696339,0.00014388,109920.0,109910.0,0.5169747]
[1756157696562,0.00014388,109920.0,109910.0,0.28004995]
[1756157696758,0.00014388,109920.0,109910.0,0.43004995]
[1756157698727,0.00014388,109920.0,109910.0,0.11484995]
[1756157698931,0.00014388,109920.0,109910.0,0.43004995]
[1756157699664,0.00014388,109920.0,109910.0,0.43000995]
[1756157700289,0.00014388,109920.0,109910.0,0.26484995]
[1756157700493,0.00213388,109920.0,109910.0,0.43000995]
[1756157700718,0.00014388,109920.0,109910.0,0.43000995]
[1756157701464,0.00014388,109920.0,109910.0,0.11484995]
[1756157701681,0.00014388,109920.0,109910.0,0.43000995]
[1756157702273,0.00014388,109920.0,109910.0,0.09813177]
[1756157702472,0.00014388,109920.0,109910.0,1.00749186]
[1756157702674,0.00014388,109920.0,109910.0,0.35013652]
[1756157703005,0.00014388,109920.0,109910.0,0.26325177]
[1756157703220,0.00213388,109920.0,109910.0,0.26325177]
[1756157703432,0.00213388,109920.0,109910.0,0.26022177]
[1756157703634,0.00213388,109920.0,109910.0,0.09310177]
[1756157703844,0.00518388,109920.0,109910.0,0.16612]
[1756157704077,0.00518388,109920.0,109910.0,0.17012]
[1756157704312,0.00518388,109920.0,109910.0,0.16512]
[1756157704526,0.00518388,109920.0,109910.0,0.18943102]
[1756157704740,0.00518388,109920.0,109910.0,0.173982]
[1756157704951,0.00518388,109920.0,109910.0,0.168982]
[1756157705465,0.00518388,109920.0,109910.0,0.170982]
[1756157705680,0.03255388,109920.0,109910.0,0.169982]
[1756157705932,0.03255388,109920.0,109910.0,0.168982]
[1756157706143,4.28890588,109920.0,109910.0,0.168982]
[1756157706345,4.37677553,109920.0,109910.0,0.168982]
[1756157707460,4.37577553,109920.0,109910.0,0.168982]
[1756157707674,4.30314799,109920.0,109910.0,0.168982]
[1756157707909,4.30514799,109920.0,109910.0,0.168982]
[1756157708143,4.30814799,109920.0,109910.0,0.168982]
[1756157708368,4.30509799,109920.0,109910.0,0.168982]
[1756157708567,0.02137599,109920.0,109910.0,0.168982]
[1756157709142,0.01938599,109920.0,109910.0,0.19158102]
[1756157710066,0.01938599,109920.0,109910.0,0.26411377]
[1756157710494,0.00014388,109920.0,109910.0,0.41411377]
[1756157710714,0.00014388,109920.0,109910.0,1.15450757]
[1756157710917,0.00014388,109920.0,109910.0,1.31971574]
[1756157711346,0.0004,109930.0,109920.0,0.26744902]
[1756157711548,0.0004,109930.0,109920.0,1.07512522]
[1756157711739,0.0004,109930.0,109920.0,1.07815522]
[1756157711991,0.0004,109930.0,109920.0,1.01299282]
[1756157712390,0.00015339,109940.0,109930.0,0.92095807]
[1756157712573,0.00015339,109940.0,109930.0,1.17504282]
[1756157712791,0.00015339,109940.0,109930.0,0.63902674]
[1756157712940,0.00015339,109940.0,109930.0,0.53902674]
[1756157713145,0.00015339,109940.0,109930.0,0.35586599]
[1756157713355,0.00015339,109940.0,109930.0,0.50586599]
[1756157713555,0.00015339,109940.0,109930.0,0.35586599]
[1756157713966,0.00015339,109940.0,109930.0,0.26898124]
[1756157714154,0.00015339,109940.0,109930.0,0.27398124]
[1756157714353,0.00015339,109940.0,109930.0,0.26898124]
[1756157714636,0.00015339,109940.0,109930.0,0.09875124]
[1756157714844,0.00015339,109940.0,109930.0,0.26995124]
[1756157715049,0.00213339,109940.0,109930.0,0.26683124]
[1756157715387,0.00213339,109940.0,109930.0,0.002]
[1756157715589,0.00213339,109940.0,109930.0,0.24950928]
[1756157715791,0.00213339,109940.0,109930.0,0.25050928]
[1756157715997,0.01746985,109940.0,109930.0,0.43244323]
[1756157716425,0.01636985,109940.0,109930.0,0.43244323]
[1756157716800,0.01746985,109940.0,109930.0,0.20238297]
[1756157717007,0.01746985,109940.0,109930.0,0.36642297]
[1756157717197,0.19938725,109940.0,109930.0,0.34697395]
[1756157717410,0.19938725,109940.0,109930.0,0.34897395]
[1756157717617,0.19938725,109940.0,109930.0,0.34797395]
[1756157717800,0.19938725,109940.0,109930.0,0.34697395]
[1756157718002,0.20681256,109980.0,109930.0,0.34697395]
[1756157718200,0.1819174,109940.0,109930.0,0.34697395]
[1756157718676,0.1819174,109940.0,109930.0,0.16504]
[1756157718859,0.1819174,109940.0,109930.0,0.34697395]
[1756157719057,0.1829174,109940.0,109930.0,0.34697395]
[1756157719941,0.001,109940.0,109930.0,0.34697395]
[1756157720154,0.50655538,109940.0,109930.0,0.34697395]
[1756157720370,4.257352,109940.0,109930.0,0.34697395]
[1756157720575,0.001,109940.0,109930.0,0.34697395]
[1756157720786,0.003,109940.0,109930.0,0.34697395]
[1756157721250,0.003,109940.0,109930.0,0.36442297]
[1756157721462,0.003,109940.0,109930.0,0.36957297]
[1756157721923,0.003,109940.0,109930.0,0.36442297]
[1756157722187,0.003,109940.0,109930.0,0.36049297]
[1756157723120,0.002,109940.0,109930.0,0.36049297]
[1756157723334,0.537478,109950.0,109940.0,0.19936642]
[1756157723775,0.18190086,109950.0,109940.0,0.36436642]
[1756157723996,0.5,109940.0,109930.0,0.26938297]
[1756157724212,4.2661534,109940.0,109930.0,0.41693395]
[1756157724440,0.1819174,109940.0,109930.0,0.41893395]
[1756157724676,0.18190086,109950.0,109930.0,0.41793395]
[1756157724891,4.584236,109940.0,109930.0,0.41693395]
[1756157725315,4.084236,109940.0,109930.0,0.41693395]
[1756157726223,4.084236,109940.0,109930.0,0.43942297]
[1756157726653,0.03661512,109950.0,109940.0,0.1819174]
[1756157726857,0.03661512,109950.0,109940.0,0.1838774]
[1756157726858,0.53661512,109950.0,109940.0,0.1838774]
[1756157727063,4.584236,109950.0,109940.0,0.20440642]
[1756157727290,4.12179087,109950.0,109940.0,0.20440642]
[1756157727502,0.03755487,109950.0,109940.0,0.20440642]
[1756157727702,0.53755487,109950.0,109940.0,0.20440642]
[1756157727930,4.62279087,109950.0,109940.0,0.20440642]
[1756157728189,0.03755487,109950.0,109940.0,0.20440642]
[1756157728430,0.53636887,109950.0,109940.0,0.20440642]
[1756157728634,4.62060487,109950.0,109940.0,0.20440642]
[1756157728867,0.05060643,109950.0,109940.0,0.20440642]
[1756157729066,0.55060643,109950.0,109940.0,0.20440642]
[1756157729292,4.63484243,109950.0,109940.0,0.20440642]
[1756157729500,0.05060643,109950.0,109940.0,0.20440642]
[1756157729715,0.55060643,109950.0,109940.0,0.20440642]
[1756157729927,4.63484243,109950.0,109940.0,0.20440642]
[1756157730189,0.05060643,109950.0,109940.0,0.20440642]
[1756157730400,4.63384243,109950.0,109940.0,0.20440642]
[1756157730617,0.04960643,109950.0,109940.0,0.20440642]
[1756157730822,0.54960643,109950.0,109940.0,0.20440642]
[1756157730984,4.63384243,109950.0,109940.0,0.20440642]
[1756157731165,0.04960643,109950.0,109940.0,0.20440642]
[1756157731376,0.54960643,109950.0,109940.0,0.20440642]
[1756157731622,4.63384243,109950.0,109940.0,0.20440642]
[1756157731778,0.04960643,109950.0,109940.0,0.20440642]
[1756157731978,0.54960643,109950.0,109940.0,0.20440642]
[1756157732163,4.63384243,109950.0,109940.0,0.20440642]
[1756157732375,0.03536887,109950.0,109940.0,0.20440642]
[1756157732585,0.5,109950.0,109940.0,0.20440642]
[1756157732783,4.584236,109950.0,109940.0,0.20440642]
[1756157732993,0.03661178,109950.0,109940.0,0.20440642]
[1756157733210,0.00047952,109960.0,109950.0,0.19934988]
[1756157733420,0.00047952,109960.0,109950.0,0.36930988]
[1756157734449,0.00347952,109960.0,109950.0,0.36930988]
[1756157734652,0.00147952,109960.0,109950.0,0.36930988]
[1756157734856,0.00047952,109960.0,109950.0,0.44184263]
[1756157735083,0.5,110000.0,109950.0,0.44284263]
[1756157735303,0.00014385,110000.0,109990.0,0.18183471]
[1756157735525,0.00014385,110000.0,109990.0,0.35175471]
[1756157735732,0.50014385,110000.0,109990.0,0.36920373]
[1756157735954,0.01437565,110000.0,109990.0,0.36920373]
[1756157736379,0.51437565,110000.0,109990.0,0.36920373]
[1756157736582,0.00414385,110000.0,109990.0,0.36920373]
[1756157736986,0.00014385,110000.0,109990.0,0.36920373]
[1756157737209,0.00214385,110000.0,109990.0,0.52862123]
[1756157737414,0.0002,110020.0,110010.0,0.18180165]
[1756157737590,0.0002,110020.0,110010.0,0.43409067]
[1756157737841,0.00048,110030.0,110020.0,0.19923414]
[1756157738034,0.00048,110030.0,110020.0,0.42299414]
[1756157738234,0.00048,110030.0,110020.0,0.73241164]
[1756157738793,0.00048,110030.0,110020.0,0.89725164]
[1756157739413,0.00048,110030.0,110020.0,0.73241164]
[1756157739591,0.00048,110030.0,110020.0,0.89725164]
[1756157740096,0.03678592,110050.0,110040.0,0.18175209]
[1756157740307,0.03692969,110050.0,110040.0,0.34855209]
[1756157740510,0.03692969,110050.0,110040.0,0.20424111]
[1756157740636,0.03692969,110050.0,110040.0,0.36908111]
[1756157741251,0.03692969,110050.0,110040.0,0.36812111]
[1756157741462,0.03692969,110050.0,110040.0,0.37008111]
[1756157742074,0.03692969,110050.0,110040.0,0.37108111]
[1756157742290,0.03723969,110050.0,110040.0,0.20120111]
[1756157742487,0.53742969,110050.0,110040.0,0.34851209]
[1756157742751,4.62166569,110050.0,110040.0,0.34851209]
[1756157742955,0.21916526,110050.0,110040.0,0.16676]
[1756157743132,0.21916526,110050.0,110040.0,0.16576]
[1756157743133,4.36284583,110050.0,110040.0,0.16576]
[1756157743331,4.36284583,110050.0,110040.0,0.18175209]
[1756157743547,4.36284583,110050.0,110030.0,0.18175399]
[1756157743783,0.27860983,110050.0,110040.0,0.34651209]
[1756157743914,4.30340126,110050.0,110040.0,0.18175209]
[1756157744114,4.30340126,110050.0,110040.0,0.34651209]
[1756157744115,4.12147569,110050.0,110040.0,0.34651209]
[1756157744403,4.12147569,110050.0,110040.0,0.34647209]
[1756157744617,0.03823969,110050.0,110040.0,0.34647209]
[1756157744830,0.53823969,110050.0,110040.0,0.34647209]
[1756157745037,4.62247569,110050.0,110040.0,0.34647209]
[1756157745297,0.03823969,110050.0,110040.0,0.34647209]
[1756157745514,0.54379507,110050.0,110040.0,0.34647209]
[1756157745733,4.12216569,110050.0,110040.0,0.34647209]
[1756157745932,0.05215426,110050.0,110040.0,0.36896111]
[1756157746359,0.55215426,110050.0,110040.0,0.36896111]
[1756157746563,0.05215426,110050.0,110040.0,0.36896111]
[1756157746773,0.05115426,110050.0,110040.0,0.36896111]
[1756157747196,0.05215426,110050.0,110040.0,0.36896111]
[1756157747618,0.05115426,110050.0,110040.0,0.36896111]
[1756157747844,0.01476834,110050.0,110040.0,0.36896111]
[1756157748468,0.01476834,110050.0,110040.0,0.37196111]
[1756157748901,0.05182147,110050.0,110040.0,0.37188111]
[1756157749326,0.01476834,110050.0,110040.0,0.37188111]
[1756157749739,0.00054377,110050.0,110040.0,0.37288111]
[1756157750639,0.00054377,110050.0,110040.0,0.60976586]
[1756157750870,0.00054377,110050.0,110040.0,1.26327491]
[1756157751337,0.0002,110070.0,110060.0,0.18171906]
[1756157751564,0.00067904,110070.0,110060.0,0.41623906]
[1756157751794,0.00067904,110070.0,110060.0,0.41819906]
[1756157752009,0.00067904,110070.0,110060.0,1.09223713]
[1756157752466,0.00067904,110070.0,110060.0,0.43872808]
[1756157752965,0.00167904,110070.0,110060.0,0.43872808]
[1756157753414,0.00067904,110070.0,110060.0,0.43872808]
[1756157753640,0.00067904,110070.0,110060.0,0.44072808]
[1756157753873,0.0002,110080.0,110060.0,0.52961283]
[1756157754116,1e-08,110080.0,110070.0,1.48063812]
[1756157754332,1e-08,110080.0,110070.0,1.48567812]
[1756157754562,0.00170069,110130.0,110100.0,0.00908265]
[1756157754783,0.50170069,110130.0,110120.0,0.18162005]
[1756157755012,4.6235494,110130.0,110120.0,0.18162005]
[1756157755227,0.0393134,110130.0,110120.0,0.34618005]
[1756157755452,0.5393134,110130.0,110120.0,0.34618005]
[1756157755639,4.6235494,110130.0,110120.0,0.18162005]
[1756157755842,0.0393134,110130.0,110120.0,0.36358907]
[1756157756045,0.5393134,110130.0,110120.0,0.36358907]
[1756157756175,4.6235494,110130.0,110120.0,0.36358907]
[1756157756403,0.18160355,110130.0,110120.0,0.19906907]
[1756157756613,0.18160355,110130.0,110120.0,0.16448]
[1756157756851,0.68162005,110120.0,110110.0,0.06992]
[1756157757063,0.18162005,110120.0,110110.0,0.2344]
[1756157757700,0.19583565,110120.0,110110.0,0.2344]
[1756157757991,0.19583565,110120.0,110110.0,0.06992]
[1756157757992,4.28007165,110120.0,110110.0,0.06992]
[1756157758192,4.28007165,110120.0,110110.0,0.2344]
[1756157758404,4.30739465,110120.0,110110.0,0.06992]
[1756157758663,4.30739465,110120.0,110110.0,0.2344]
[1756157758988,0.18166954,110090.0,110080.0,0.06988]
[1756157759383,4.26590554,110090.0,110080.0,0.23432]
[1756157759589,4.35277519,110090.0,110080.0,0.06988]
[1756157759837,4.36699431,110090.0,110080.0,0.23432]
[1756157760047,4.36699431,110090.0,110080.0,0.16444]
[1756157760215,4.36699431,110090.0,110080.0,0.16458371]